Cogmind - Beta 13 @@@ ROGUE MODE // 2024.03.31 @ 23:35:40 Player: weedlord420 Result: Destroyed by G-47 Trooper with Particle Gun Performance ------------- Evolutions (2) 1000 Regions Visited (4) 800 Robots Destroyed (151) 755 Value Destroyed (3739) 3739 Prototype IDs (14) 280 Alien Tech Used (0) 0 Bonus (201) 201 TOTAL SCORE: 6775 Bonus ------- High Alert Combat Kills 201 Cogmind --------- Core Integrity 0/550 Matter 172/300 Energy 265/280 System Corruption 1% Temperature Cool (38) Movement Treading (160) Location -8/Materials Parts ------- > --- POWER (1) -------- Cooled Ion Engine > --- PROPULSION (2) --- Light Treads Light Treads > --- UTILITY (4) ------ Advanced Heat Sink Small Storage Unit Improved Targeting Computer Hacking Suite > --- WEAPON (4) ------- Compact Ion Cannon Heavy Assault Rifle Assault Cannon Assault Cannon > --- INVENTORY (8) ---- Armored Treads Advanced Treads Advanced Treads Recoil Stabilizer Power Shielding Light Armor Plating Hardened Medium Armor Plating Hacking Suite Peak State ------------ > --- POWER ------------ Cooled Ion Engine > --- PROPULSION ------- Light Treads Light Treads > --- UTILITY ---------- Advanced Heat Sink Small Storage Unit Improved Targeting Computer Hacking Suite > --- WEAPON ----------- Heavy Laser Compact Ion Cannon Heavy Assault Rifle Assault Cannon > --- INVENTORY -------- Armored Treads Targeting Computer Recoil Stabilizer Power Shielding Hardened Medium Armor Plating Hacking Suite Assault Cannon [Rating: 32] Favorites ----------- Power Cooled Ion Engine Engine Cooled Ion Engine Power Core Light Nuclear Core Propulsion Light Treads Treads Light Treads Leg Aluminum Leg Utility Small Storage Unit Device Heat Sink Storage Small Storage Unit Processor Improved Targeting Computer Hackware Hacking Suite Protection Light Armor Plating Weapon Assault Cannon Energy Gun Small Laser Energy Cannon Advanced Beam Cannon Ballistic Gun Improved Assault Rifle Ballistic Cannon Assault Cannon Build | -11 -10 -9 -9 -8 ------- Run | Yrd Mat Mat Sto Mat Slots Evolved 4 | . . 2 . 2 Power . | . . . . . Propulsion . | . . . . . Utility 2 | . . . . 2 Weapon 2 | . . 2 . . Parts Attached 86 | 6 13 29 17 21 Power 16 | 1 4 5 3 3 Engine 14 | 1 3 5 3 2 Core 2 | . 1 . . 1 Reactor . | . . . . . Propulsion 25 | 2 5 7 5 6 Treads 16 | . . 7 5 4 Leg 9 | 2 5 . . 2 Wheel . | . . . . . Hover . | . . . . . Flight . | . . . . . Utility 13 | 1 2 3 1 6 Device 7 | . 1 3 . 3 Storage 2 | 1 1 . . . Processor 1 | . . . . 1 Hackware 1 | . . . 1 . Protection 2 | . . . . 2 Artifact . | . . . . . Weapon 32 | 2 2 14 8 6 Energy Gun 3 | . 2 . . 1 Energy Cannon 6 | . . 3 2 1 Ballistic Gun 14 | 2 . 7 3 2 Ballistic Cannon 9 | . . 4 3 2 Launcher . | . . . . . Special Weapon . | . . . . . Impact Weapon . | . . . . . Slashing Weapon . | . . . . . Piercing Weapon . | . . . . . Special Melee Weapon . | . . . . . Unidentified Prototypes 2 | . . . 1 1 Parts Lost 17 | . 3 3 2 9 Power 3 | . 2 . . 1 Propulsion 5 | . . 1 1 3 Utility 2 | . . . . 2 Weapon 7 | . 1 2 1 3 Highest Loss Streak 7 | . 2 1 2 7 To Critical Strikes . | . . . . . Average Slot Usage (%) 95 | . 96 99 97 86 Engine 10 | . 10 11 11 8 Treads 16 | . . 21 21 12 Leg 4 | . 28 . . 1 Device 8 | . 11 10 7 5 Storage 11 | . 14 11 11 9 Processor 2 | . . . . 9 Hackware 3 | . . . 3 9 Energy Gun 4 | . 19 . . 5 Energy Cannon 6 | . . 6 9 7 Ballistic Gun 11 | . 8 16 10 5 Ballistic Cannon 15 | . . 20 21 9 Naked Turns . | . . . . . Heaviest Build 36 | 13 14 34 34 36 Greatest Support 43 | 20 20 43 43 40 Greatest Overweight (x) 7 | . . 1 1 7 Average Overweight (x) . | . . . . . Largest Inventory Capacity 8 | 8 8 8 8 8 Average Capacity 7 | 6 8 8 8 8 Most Carried 8 | 5 8 8 8 8 Average Carried 6 | 2 6 6 7 6 Final Capacity 8 | 8 8 8 8 8 Final Carried 8 | 3 7 8 8 8 Class Distribution -------------------- 61% | Gunner 15% | Scavenger-Gunner 13% | Mutant 9% | Scavenger-Mutant Dominant Class ---------------- Scavenger-Mutant | -10/Materials Gunner | -9/Materials Gunner | -9/Storage Scavenger-Gunner | -8/Materials Resources | -11 -10 -9 -9 -8 ----------- Run | Yrd Mat Mat Sto Mat Matter Collected 3594 | 260 297 1335 1118 584 Remotely 140 | . 140 . . . Salvage Created 5135 | 28 687 1937 1381 1102 Parts 334 | 4 40 132 105 53 Haulers Intercepted 15 | . 1 4 6 4 Recyclers Shooed 2 | . . 1 . 1 Parts Field Recycled . | . . . . . Retrieved Matter . | . . . . . Parts Self-Destructed . | . . . . . Prevented . | . . . . . Kills | -11 -10 -9 -9 -8 ------- Run | Yrd Mat Mat Sto Mat Combat Hostiles Destroyed 106 | . 10 45 30 21 Guns 43 | . 10 25 2 6 Cannons 62 | . . 20 27 15 Classes Destroyed 11 | 1 6 3 . 1 Worker 12 | . . 6 4 2 Builder 4 | . 1 1 2 . Tunneler 2 | 1 . 1 . . Hauler 15 | . 1 4 6 4 Recycler 4 | . 2 1 . 1 Watcher 13 | . 3 5 2 3 Swarmer 25 | . 3 10 6 6 Grunt 57 | . 7 26 14 10 Brawler 1 | . . 1 . . Sentry 22 | . . 8 10 4 Hunter 1 | . . . . 1 Best Kill Streak 9 | 1 5 8 9 5 Combat Bots Only 8 | . 3 7 8 5 Max Kills in Single Turn 2 | 1 1 2 2 1 Gunslinging . | . . . . . Exploded . | . . . . . Melee . | . . . . . Uniques/NPCs Destroyed . | . . . . . Combat | -11 -10 -9 -9 -8 -------- Run | Yrd Mat Mat Sto Mat Hostile Shots Fired 542 | . 81 194 83 184 Missed 147 | . 21 57 19 50 Damage Taken 5049 | . 771 1491 729 2058 Core 866 | . 92 144 75 555 Absorbed by Shields 83 | . . . . 83 Regen/Repaired (Parts) 522 | . . 111 367 44 Core Remaining (%) 69 | 100 63 . 45 . Volleys Fired 348 | 4 70 112 75 87 Largest 4 | 2 2 4 4 4 Hottest 224 | 40 90 176 224 203 Shots Fired 1029 | 8 137 420 241 223 Gun 471 | 8 137 203 24 99 Cannon 558 | . . 217 217 124 Launcher . | . . . . . Special . | . . . . . Kinetic 735 | 8 101 336 165 125 Thermal 294 | . 36 84 76 98 Explosive . | . . . . . Electromagnetic . | . . . . . Robot Hit Streak 15 | 3 15 10 8 13 Robot Miss Streak 15 | 1 5 5 15 6 Penetration Max . | . . . . . Secondary Targets 1 | . 1 . . . Max Gunslinging Chain 1 | . 1 . . . Shots Hit Robots 524 | 5 83 216 84 136 Core Hits 213 | 2 35 79 46 51 Critical Kills 3 | . . 1 1 1 Critical Parts Destroyed . | . . . . . Critical Strikes 12 | . . 5 3 4 Burn 1 | . . . . 1 Meltdown 3 | . . 1 1 1 Blast 8 | . . 4 2 2 Melee Attacks . | . . . . . Impact . | . . . . . Slashing . | . . . . . Piercing . | . . . . . Sneak Attacks . | . . . . . Combat Hostiles . | . . . . . Follow-up Attacks . | . . . . . Damage Inflicted 10488 | 43 896 4119 2157 3273 Guns 4027 | 43 877 1737 187 1183 Cannons 6415 | . . 2363 1967 2085 Explosions . | . . . . . Melee . | . . . . . Ramming 46 | . 19 19 3 5 Kinetic 6953 | 43 671 3227 1541 1471 Thermal 3489 | . 206 873 613 1797 Explosive . | . . . . . Electromagnetic . | . . . . . Impact . | . . . . . Slashing . | . . . . . Piercing . | . . . . . Highest Corruption 1 | . 1 1 1 1 Average Corruption 1 | . 1 1 1 1 Corruption Purged . | . . . . . Corruption Blocked . | . . . . . Effects 30 | . 4 7 15 4 Message Errors 4 | . 1 . 2 1 Matter Fused 5 | . 1 2 1 1 Heat Flow Errors 6 | . . 3 3 . Energy Discharges 2 | . 1 . 1 . Data Loss (minor) 5 | . . 1 4 . Data Loss (major) 3 | . 1 . 2 . Misfires 1 | . . 1 . . Alerts 3 | . . . 2 1 Weapon Failures 1 | . . . . 1 Overload Shots . | . . . . . Overflow Damage 126 | . . 54 28 44 Projectiles 126 | . . 54 28 44 Explosions . | . . . . . Melee . | . . . . . Knockbacks 15 | . . 5 3 7 Impact . | . . . . . Kinetic 15 | . . 5 3 7 Secondary . | . . . . . Self-Inflicted Damage . | . . . . . Shots . | . . . . . Rammed 9 | . . 5 2 2 Targets Rammed 12 | . 3 5 2 2 Kicked 3 | . 3 . . . Crushed . | . . . . . Highest Temperature 644 | . 116 265 457 644 Average Temperature 96 | . 32 69 119 130 Received Heat Transfer 2031 | . 360 642 264 765 Effects 17 | . . . 7 10 Shutdowns 1 | . . . . 1 Energy Bleed 4 | . . . . 4 Interference 5 | . . . 3 2 Short Circuit 1 | . . . . 1 Damage (minor) 1 | . . . . 1 Damage (major) 4 | . . . 4 . Damage (core) 1 | . . . . 1 Siege Activations . | . . . . . Robots Corrupted . | . . . . . Combat Hostiles . | . . . . . Parts Fried . | . . . . . Impact Corruptions . | . . . . . Robots Melted 3 | . . 1 1 1 Combat Hostiles 1 | . . . 1 . Parts Melted 16 | . 1 2 2 11 Heat Transferred 6247 | . 475 1850 1110 2812 Parts Sabotaged . | . . . . . Parts Stolen . | . . . . . Parts Stripped . | . . . . . Power Chain Reactions . | . . . . . Alert | -11 -10 -9 -9 -8 ------- Run | Yrd Mat Mat Sto Mat Peak Influence 666 | 5 304 576 666 496 Initial 190 | . 3 1 154 190 Average 287 | 1 77 300 395 295 Maximum Alert Level 2 | . 1 2 2 2 Low Security (%) 24 | 100 86 23 3 5 Level 1 53 | . 13 61 44 85 Level 2 21 | . . 15 52 9 Level 3 . | . . . . . Level 4 . | . . . . . Level 5 . | . . . . . High Security . | . . . . . Max Security . | . . . . . Squads Dispatched 17 | . 1 9 3 4 Investigation 9 | . . 5 2 2 Extermination . | . . . . . Reinforcement 8 | . 1 4 1 2 Assault . | . . . . . Garrison . | . . . . . Intercept . | . . . . . Searches Triggered . | . . . . . Construction Impeded 2 | . . 2 . . Haulers Reinforced . | . . . . . Active Scanning Responses . | . . . . . Cargo Convoy Interrupts . | . . . . . Stealth | -11 -10 -9 -9 -8 --------- Run | Yrd Mat Mat Sto Mat Distress Signals 10 | . 3 1 4 2 Communications Jammed . | . . . . . Distress Signals . | . . . . . Times Spotted 149 | . 21 54 35 39 Peak Tracking Total 8 | . 5 6 7 8 Tactical Retreats 3 | . . . 1 2 Traps | -11 -10 -9 -9 -8 ------- Run | Yrd Mat Mat Sto Mat Traps Triggered 4 | . 1 2 . 1 Indirectly . | . . . . . Trap Hack Attempts . | . . . . . Triggered . | . . . . . Disarmed . | . . . . . Reprogrammed . | . . . . . Reused . | . . . . . Traps Extracted . | . . . . . Installed . | . . . . . Triggered . | . . . . . Machines | -11 -10 -9 -9 -8 ---------- Run | Yrd Mat Mat Sto Mat Machines Disabled 13 | . . 3 8 2 Max in Single Turn 2 | . . 1 1 2 Machines Repaired . | . . . . . Machines Dismantled . | . . . . . Machines Sabotaged . | . . . . . Overloaded Fab Kills . | . . . . . Hacking | -11 -10 -9 -9 -8 --------- Run | Yrd Mat Mat Sto Mat Machines Accessed 32 | . 5 9 12 6 Terminals 24 | . 5 6 9 4 Fabricators . | . . . . . Repair Stations 4 | . . 1 2 1 Recycling Units 1 | . . . 1 . Scanalyzers 3 | . . 2 . 1 Garrison Access . | . . . . . Total Hacks 93 | . 11 27 40 15 Successful 61 | . 6 15 27 13 Failed 32 | . 5 12 13 2 Catastrophic 4 | . . 3 1 . Database Lockouts . | . . . . . Manual 1 | . . . 1 . Terminals 59 | . 11 17 22 9 Fabricators . | . . . . . Repair Stations 22 | . . 7 13 2 Recycling Units 5 | . . . 5 . Scanalyzers 7 | . . 3 . 4 Garrison Access . | . . . . . Terminal Hacks 34 | . 6 8 13 7 Record 1 | . . . . 1 Prototype ID Bank 8 | . 1 2 3 2 Open Door 3 | . . . 3 . Terminal Index 2 | . . . 1 1 Repair Station Index 1 | . . . 1 . Unreport Threat 7 | . 2 3 2 . Locate Traps 6 | . 1 2 2 1 Hauler Manifests 1 | . 1 . . . Registered Components 2 | . . 1 . 1 Zone Layout 3 | . 1 . 1 1 Fabricator Hacks . | . . . . . Repair Station Hacks 17 | . . 4 11 2 Scan Component 9 | . . 2 6 1 Repair 8 | . . 2 5 1 Recycling Unit Hacks 3 | . . . 3 . Recycle Component 1 | . . . 1 . Process 1 | . . . 1 . Report Inventory 1 | . . . 1 . Scanalyzer 7 | . . 3 . 4 Insert Component 5 | . . 2 . 3 Analyze 2 | . . 1 . 1 Garrison Access Hacks . | . . . . . Unauthorized Hacks . | . . . . . Terminals . | . . . . . Fabricators . | . . . . . Repair Stations . | . . . . . Recycling Units . | . . . . . Scanalyzers . | . . . . . Garrison Access . | . . . . . Data Cores Recovered . | . . . . . Used . | . . . . . Hacking Detections 21 | . 3 7 6 5 Full Trace Events 9 | . . 4 3 2 Feedback Events 1 | . . . . 1 Corruption 1 | . . . . 1 Feedback Blocked . | . . . . . Robot Schematics Acquired . | . . . . . Robots Built . | . . . . . Authchips . | . . . . . Time . | . . . . . Total Robot Build Rating . | . . . . . Part Schematics Acquired 2 | . . 1 . 1 Parts Built . | . . . . . Authchips . | . . . . . Time . | . . . . . Total Part Build Rating . | . . . . . Parts Repaired 8 | . . 2 5 1 Time 330 | . . 89 191 50 Parts Recycled 1 | . . . 1 . Recycled Matter 40 | . . . 40 . Retrieved Matter . | . . . . . Retrieved Components . | . . . . . Parts Scanalyzed 2 | . . 1 . 1 Part Schematics Acquired 2 | . . 1 . 1 Parts Damaged . | . . . . . Bothacking | -11 -10 -9 -9 -8 ------------ Run | Yrd Mat Mat Sto Mat Used RIF Installer . | . . . . . Robots Hacked . | . . . . . Non-combat . | . . . . . Combat . | . . . . . Robot Hacks Applied . | . . . . . Relay Couplers Released . | . . . . . Fabnet Peak Effective % . | . . . . . Robots Rewired . | . . . . . Allies Hacked . | . . . . . Hacks Repelled . | . . . . . Allies | -11 -10 -9 -9 -8 -------- Run | Yrd Mat Mat Sto Mat Total Allies . | . . . . . Largest Group . | . . . . . Highest-Rated Group . | . . . . . Highest-Rated Ally . | . . . . . Total Orders . | . . . . . Ally Attacks . | . . . . . Total Damage . | . . . . . Kills . | . . . . . Allies Corrupted . | . . . . . Allies Melted . | . . . . . Intel | -11 -10 -9 -9 -8 ------- Run | Yrd Mat Mat Sto Mat Robot Analysis Total . | . . . . . Derelict Logs Recovered . | . . . . . Drone Launches . | . . . . . Drone Recoveries . | . . . . . Exploration | -11 -10 -9 -9 -8 ------------- Run | Yrd Mat Mat Sto Mat Turns Passed 7086 | 113 1061 2334 1987 1591 Spaces Moved 3433 | 77 674 1092 927 663 Core 11 | 7 . . . 4 Treads 2623 | . . 1090 927 606 Legs 799 | 70 674 2 . 53 Wheels . | . . . . . Hover . | . . . . . Flight . | . . . . . Fastest Speed 50 | 50 120 160 160 160 Average Speed 155 | 113 120 160 161 182 Slowest Speed 400 | 120 120 190 240 400 Overloaded Moves . | . . . . . Propulsion Burnouts . | . . . . . Robots Hopped . | . . . . . Cave-ins Triggered . | . . . . . Exploration Rate (%) 65 | 4 85 96 96 48 Regions Visited 4 Branch Regions 1 Pre-discovered Areas . | . . . . . Known Exits Taken . | . . . . . Unknown Exits Taken 4 | 1 1 1 1 . Scrap Searched . | . . . . . Spaces Dug 6 | . . 2 4 . Terrain Destroyed 89 | . . 35 27 27 Melee . | . . . . . Projectile 89 | . . 35 27 27 AOE . | . . . . . Terrain Rammed . | . . . . . Walls Destroyed . | . . . . . Machines Disabled . | . . . . . Actions | -11 -10 -9 -9 -8 --------- Run | Yrd Mat Mat Sto Mat Total 4423 | 95 802 1407 1249 870 Wait 398 | . 17 110 206 65 Move 3429 | 76 673 1091 926 663 Hop . | . . . . . Pick Up 91 | 9 16 33 11 22 Fast Attach 8 | . 2 1 4 1 Attach 44 | 6 3 12 8 15 Detach 1 | . . 1 . . Swap 34 | . 8 16 5 5 Drop 58 | . 10 26 12 10 Fire 348 | 4 70 112 75 87 Melee . | . . . . . Ram . | . . . . . Kick 3 | . 3 . . . Crush 9 | . . 5 2 2 Escape Stasis . | . . . . . Rewire . | . . . . . Trap . | . . . . . Miscellaneous . | . . . . . Route ------- -11/Scrapyard -10/Materials (discovered 4 exits: *Mat x3 / [*Min]) -9/Materials (discovered 7 exits: *Mat x3 / [*Min x2] / *Sto x2) -9/Storage -8/Materials (discovered 2 exits: [*Fac x2]) History --------- Turn | Location | Event 3 | -11/Scrapyard | Discovered new exit (range 15) 114 | -11/Scrapyard | Entered Materials 144 | -10/Materials | Discovered new exit (range 16) 329 | -10/Materials | Build established: Mutant 429 | -10/Materials | Discovered new exit (range 17) 747 | -10/Materials | Discovered new exit (range 16) 928 | -10/Materials | Build established: Scavenger-Mutant 969 | -10/Materials | Discovered new exit (range 16) 1175 | -10/Materials | Entered another Materials area 1175 | -9/Materials | Evolved 2 slots: Weapon x2 1340 | -9/Materials | Discovered new exit (range 16) 1484 | -9/Materials | Build established: Gunner 1493 | -9/Materials | Discovered new exit (range 8) 1622 | -9/Materials | Discovered new exit (range 16) 1638 | -9/Materials | Destroyed 7 combat bots 1953 | -9/Materials | Repaired Imp. Assault Rifle 1993 | -9/Materials | Repaired Imp. Heat Sink 2176 | -9/Materials | Discovered new exit (range 15) 2412 | -9/Materials | Discovered new exit (range 15) 2989 | -9/Materials | Discovered new exit (range 16) 3339 | -9/Materials | Discovered new exit (range 10) 3509 | -9/Materials | Entered Storage 3821 | -9/Storage | Discovered new exit (range 15) 4139 | -9/Storage | Core integrity fell below 50% 4160 | -9/Storage | Destroyed 8 combat bots 4303 | -9/Storage | Repaired Assault Cannon 4344 | -9/Storage | Repaired Assault Cannon 4928 | -9/Storage | Repaired Shield Generator 4961 | -9/Storage | Repaired Med. Armor Plating 5014 | -9/Storage | Repaired Imp. Assault Rifle 5496 | -9/Storage | Entered Materials 5496 | -8/Materials | Evolved 2 slots: Utility x2 5722 | -8/Materials | Lost 7 parts (2n2u3w) 5833 | -8/Materials | Core integrity fell below 50% 5931 | -8/Materials | Core integrity fell below 20% 5975 | -8/Materials | Build established: Mutant 6378 | -8/Materials | Discovered new exit (range 13) 6584 | -8/Materials | Build established: Scavenger-Gunner 6643 | -8/Materials | Repaired Adv. Heat Sink 6799 | -8/Materials | Discovered new exit (range 10) 7087 | -8/Materials | Destroyed by G-47 Trooper with Particle Gun Last Messages --------------- K-01 Serf collects debris. Destroyed Imp. Hover Unit. K-01 Serf collects debris. Destroyed Imp. Hover Unit. W-25 Informer knocked back. W-25 Informer destroyed. ARM:9FSCYCJER/XHG5QWTM U-05 Engineer builds a Wall. K-01 Serf destroyed. K-01 Serf collects debris. X-57 Shotgunner knocked back. K-01 Serf collects debris. Map ----- +----------------------------------------------------+ | # " #????????????????????????????????????????? | | # #????????????????????????????????????????? | | # ###??????????????????????????????????????? | | ###+###############+######??????????????????????? | | ?????????????????????? | | %% % ! % ?????????????????????? | | % %*% ?????????????????????? | | ###%% "" #########?????????????????????????? | | ??# """" ##????????????????????????????????? | | ??# """ #?????????????????????????????????? | | ??# #?????????????????????????????????? | | ??# #?????????????????????????????????? | | ??# ""% #?????????????????????????????????? | | ??#[ "" #?????????????????????????????????? | | ??# % " #?????????????????#???????????????? | | ??# #???????????????? #???????????????? | | ??# #??????????????? #???????????????? | | ??# % %" " ##????????????? #???????????????? | | ??# """ ############### +???????????????? | | ### % " " =% #???????????????? | | # !% % u #???????????????? | | #^ % gg #???????????????? | | +%%%##############"# #######???????????????? | | # =#??###??#####??# #?????????????????????? | | # #??????????????# #?????????????????????? | | # #??????????????# @ #?????????????????????? | | ### %%#??????????????# * #?????????????????????? | | ??# #??????????????#%% #?????????????????????? | | ??# #??????????????# ! #?????????????????????? | | ??# %###########????# % x#?????????????????????? | | ### # #????# x ?????????????????????? | | # # #????# ????????????????????? | | # #[ #????# % ????????????????????? | | # # #????# k ????????????????????? | | # # """"" #????# ????????????????????? | | # # """"" #????#*[ "???????????????????? | | # + """"" #????#[ "???????????????????? | | # # #???? ???????????????????? | | # ###########???? / ???????????????????? | | ### #?????????????? ???????????????????? | | #????????????????#####?????????????????????? | | #??????????????????????????????????????????? | | #??????????????????????????????????????????? | | ### #??????????????????????????????????????????? | | # #??????????????????????????????????????????? | | # #??????????????????????????????????????????? | | # #??????????????????????????????????????????? | | # #??????????????????????????????????????????? | | " # ###########????????????????????????????????? | | " # # #????????????????????????????????? | +----------------------------------------------------+ Best States ------------- Heat Dissipation 50 Energy Generation 14 Energy Capacity 280 Matter Stores 300 Matter Capacity 300 Sight Range 16 Terrain Scan Density 10 Armor Coverage 225 Evasion (%) 55 Targeting Accuracy 6 Recoil Reduction 2 Offensive Hacking 10 Item Schematics ----------------- Hvy. EM Shotgun | -9/Materials | Scanalyzed Arm. Treads | -8/Materials | Scanalyzed Robot Schematics ------------------ None Fabricated ------------ Nothing Alien Tech Used ----------------- None Achievements -------------- Use The Force Challenges ------------ None Game ------ Seed CobblerSmallNullifier Manual? 0 Play Time 00:48:17 Cumulative 10.5 hours Start 2024.03.31 @ 22:49:57 End 2024.03.31 @ 23:35:40 Sessions 1 Manual Loads 0 Difficulty Rogue Special Mode None Game No. 21 Rogue 20 Adventurer 1 Explorer 0 Win Type - Total 0 Types 0/0/0/0/0/0/0/0/0 Lore% 3 Gallery% 16 Achievement% 14 Wizard Run 0 Options --------- Layout 1 ASCII 0 Keyboard 0 Movement Mouse Keybinds 0 Fullscreen 2 Font 24/Terminus Map View 50x35 Zoom Use 0% Tactical HUD 0 Map Filters NONE Filters NONE Steam 1 RUN: 10a1de82-6436-4044-966c-8636f1c1a656